fUSD/lending_fUSD_20240724
["ID","MTS","AMOUNT","RATE_DAILY","PERIOD"]
[333065436,1721809854664,-1044.54,0.00011506,2]
[333065437,1721809854675,-1044.54,0.00011506,2]
[333065438,1721809854684,-1044.54,0.00011506,2]
[333065439,1721809854693,-1044.54,0.00011506,2]
[333065440,1721809854703,-1044.54,0.00011506,2]
[333065441,1721809854712,-1044.54,0.00011506,2]
[333065442,1721809854721,-1044.54,0.00011506,2]
[333065443,1721809854731,-1044.72816044,0.00011506,2]
[333065444,1721809854742,-151.0,0.00011592,2]
[333065445,1721809854751,-151.0,0.00011592,2]
[333065446,1721809854760,-174.562194,0.00011592,2]
[333065447,1721809854770,-151.0,0.00011639,2]
[333065448,1721809854779,-151.0,0.00011639,2]
[333065449,1721809854788,-3441.663437,0.00011639,2]
[333065450,1721809854797,-260.488687,0.00011639,2]
[333065451,1721809854807,-174.462583,0.00011639,2]
[333065452,1721809854816,-4370.72638,0.00011639,2]
[333065453,1721809854827,-9418.619554,0.00011639,2]
[333065454,1721809854836,-5022.635057,0.00011639,2]
[333065455,1721809854846,-8183.216464,0.00011639,2]
[333065456,1721809854855,-18825.604813,0.00011639,2]
[333065457,1721809854865,-25748.916912,0.00011639,2]
[333065458,1721809854875,-520.577852,0.00011639,2]
[333065459,1721809854884,-348.659494,0.00011639,2]
[333065460,1721809854894,-279.088432,0.00011639,2]
[333065461,1721809854904,-11343.797873,0.00011639,2]
[333065462,1721809854913,-932.007853,0.00011639,2]
[333065463,1721809854922,-2946.663411,0.00011639,2]
[333065464,1721809854931,-507.1160896,0.000117,7]
[333065465,1721809854941,-32996.0,0.0001176,2]
[333065466,1721809854950,-151.0,0.00011779,2]
[333065467,1721809854959,-260.469437,0.00011779,2]
[333065468,1721809854968,-151.0,0.00011779,2]
[333065469,1721809854977,-151.0,0.00011779,2]
[333065470,1721809854986,-3441.663437,0.00011779,2]
[333065471,1721809854996,-260.488687,0.00011779,2]
[333065472,1721809855005,-174.462583,0.00011779,2]
[333065473,1721809855014,-4370.72638,0.00011779,2]
[333065474,1721809855023,-9418.619554,0.00011779,2]
[333065475,1721809855032,-5022.635057,0.00011779,2]
[333065476,1721809855041,-8183.216464,0.00011779,2]
[333065477,1721809855051,-18825.604813,0.00011779,2]
[333065478,1721809855060,-25748.916912,0.00011779,2]
[333065479,1721809855070,-520.577852,0.00011779,2]
[333065480,1721809855081,-348.659494,0.00011779,2]
[333065481,1721809855091,-279.088432,0.00011779,2]
[333065482,1721809855100,-11343.797873,0.00011779,2]
[333065483,1721809855109,-932.007853,0.00011779,2]
[333065484,1721809855119,-2946.663411,0.00011779,2]
[333065485,1721809855128,-183.084526,0.00011779,2]
[333065486,1721809855137,-201.565877,0.00011779,2]
[333065487,1721809855147,-215.170748,0.00011779,2]
[333065488,1721809855156,-174.562194,0.00011779,2]
[333065489,1721809855165,-150.82086367,0.0001179,2]
[333065490,1721809855174,-500.0,0.000118,2]
[333065491,1721809855183,-420.0,0.00011801,2]
[333065492,1721809855192,-420.0,0.0001181,2]
[333065493,1721809855201,-153.79947692,0.00011815,2]
[333065494,1721809855210,-153.79947692,0.00011834,2]
[333065495,1721809855219,-12802.61877215,0.0001185,2]
[333065496,1721809855231,-2255.59646506,0.0001189,2]
[333065497,1721809855240,-31359.8672523,0.00011892,2]
[333065498,1721809855251,-26210.9077704,0.00011892,2]
[333065499,1721809855260,-21061.9482884,0.00011892,2]
[333065500,1721809855270,-15912.9888065,0.00011892,2]
[333065501,1721809855280,-10764.0293246,0.00011892,2]
[333065502,1721809855290,-1422.5685735,0.00011892,2]
[333065503,1721809855300,-1190.4878999,0.00011892,2]
[333065504,1721809855309,-958.4072263,0.00011892,2]
[333065505,1721809855318,-726.3265526,0.00011892,2]
[333065506,1721809855328,-494.245879,0.00011892,2]
[333065507,1721809855338,-2452.0128586,0.00011892,2]
[333065508,1721809855348,-2051.9865916,0.00011892,2]
[333065509,1721809855357,-1651.9603247,0.00011892,2]
[333065510,1721809855367,-1251.9340577,0.00011892,2]
[333065511,1721809855377,-851.9077907,0.00011892,2]
[333065512,1721809855386,-578354.56598673,0.000119,2]
[333065516,1721810251427,150.0,0.00014834,120]
[333065517,1721810286998,-155.46,9.148e-05,2]
[333065518,1721810293891,200.0,9.15e-05,2]
[333065519,1721810370836,150.0,0.00014739,120]
[333065520,1721810492045,150.0,0.00016281,120]
[333065522,1721810569700,43.64,8.418e-05,2]
[333065523,1721810569724,107.51,8.418e-05,2]
[333065525,1721810809037,-223.07093855,9.383e-05,2]
[333065526,1721810809063,-223.07093855,9.467e-05,2]
[333065527,1721810809088,-223.07093855,9.678e-05,2]
[333065539,1721810853911,200.7638447,9.418e-05,2]
[333065540,1721810854428,200.7638447,9.808e-05,2]
[333065541,1721810854908,200.7638447,9.843e-05,2]
[333065550,1721811032301,-264.49,0.00010055,2]
[333065551,1721811032311,-264.49,0.00010058,2]
[333065552,1721811032320,-119.12144146,0.00010061,2]
[333065553,1721811032332,-145.36855854,0.00010061,2]
[333065554,1721811032342,-206.53,0.00010063,2]
[333065555,1721811032357,-57.96,0.00010063,2]
[333065556,1721811032366,-264.49,0.00010066,2]
[333065557,1721811032375,-264.49,0.00010069,2]
[333065558,1721811032384,-206.41,0.00010071,2]
[333065559,1721811032469,-58.08,0.00010071,2]
[333065560,1721811032478,-264.49,0.00010074,2]
[333065561,1721811032488,-264.49,0.00010077,2]
[333065562,1721811032497,-264.49,0.00010079,2]
[333065563,1721811032506,-264.49,0.00010082,2]
[333065564,1721811032516,-264.49,0.00010085,2]
[333065565,1721811032525,-264.49,0.00010087,2]
[333065566,1721811032535,-264.49,0.0001009,2]
[333065567,1721811032544,-264.49,0.00010092,2]
[333065568,1721811032553,-264.49,0.00010095,2]
[333065569,1721811032563,-264.49,0.00010098,2]
[333065570,1721811032572,-264.49,0.000101,2]
[333065571,1721811032582,-264.49,0.00010103,2]
[333065572,1721811032591,-264.49,0.00010106,2]
[333065573,1721811032600,-945.7530589,0.00010203,2]
[333065574,1721811032609,-530.16993865,0.00010203,2]
[333065575,1721811032618,-200.7638447,0.00010293,2]
[333065576,1721811032628,-250.0,0.00010327,2]
[333065577,1721811032637,-200.7638447,0.00010479,2]
[333065578,1721811032646,-300.0,0.00010479,2]
[333065579,1721811032656,-200.7638447,0.00010579,2]
[333065580,1721811032666,-1000.0,0.00010732,2]
[333065581,1721811032676,-200.7638447,0.00010771,2]
[333065582,1721811032685,-3856.01783766,0.000108,2]
[333065583,1721811032695,-200.7638447,0.00010874,2]
[333065584,1721811032705,-378.6853528,0.00010882,2]
[333065585,1721811032714,-1029.46164661,0.000109,2]
[333065588,1721811038372,-2516.1189785,0.000109,2]
[333065589,1721811038429,-520.9101,0.000109,2]
[333065603,1721811040196,-268.64651955,0.000109,2]
[333065604,1721811040208,-5664.86275534,0.000109,2]
[333065605,1721811040218,-151.15,0.00010948,2]
[333065606,1721811040228,-1250.0,0.00011,2]
[333065607,1721811040238,-1829.0,0.00011086,2]
[333065608,1721811040247,-563.98724466,0.00011086,2]
[333065609,1721811040259,-345.1328317,0.00011086,2]
[333065610,1721811040271,-344.87992364,0.00011086,2]
[333065611,1721811040280,-362.0,0.00011086,2]
[333065612,1721811040289,-1664.0,0.00011086,2]
[333065613,1721811040299,-450.0,0.00011086,2]
[333065614,1721811040308,-445.0,0.00011086,2]
[333065615,1721811040318,-810.0,0.00011086,2]
[333065616,1721811040327,-621.0,0.00011086,2]
[333065617,1721811040338,-1488.252,0.00011086,2]
[333065618,1721811040348,-456.06807636,0.00011086,2]
[333065619,1721811040360,-1048.21934277,0.00011086,2]
[333065620,1721811040371,-490.71258087,0.00011086,2]
[333065621,1721811040384,-150.0,0.00011086,2]
[333065622,1721811040393,-806.37608284,0.00011086,2]
[333065623,1721811040409,-2448.12891716,0.00011086,2]
[333065624,1721811040419,-437.29296611,0.00011105,2]
[333065625,1721811040428,-2383.65951488,0.00011105,2]
[333065626,1721811040438,-246.26679915,0.00011105,2]
[333065627,1721811040447,-153.0,0.00011159,2]
[333065628,1721811040457,-211.13114,0.00011174,2]
[333065629,1721811040466,-521.82541979,0.00011206,2]
[333065630,1721811040476,-206.58180897,0.00011206,2]
[333065631,1721811040485,-200.7638447,0.00011212,2]
[333065632,1721811040495,-357.0,0.000113,2]
[333065633,1721811040504,-1000.0,0.000113,2]
[333065634,1721811040514,-225.0,0.000113,2]
[333065635,1721811040523,-512.3,0.000113,2]
[333065636,1721811040533,-155.0,0.00011322,2]
[333065637,1721811040542,-155.0,0.00011322,2]
[333065638,1721811040552,-200.7638447,0.00011376,2]
[333065639,1721811040562,-156.13117152,0.000115,2]
[333065640,1721811040572,-275.26042723,0.00011506,2]
[333065641,1721811040581,-420.0,0.00011521,2]
[333065642,1721811040592,-150.0,0.00011534,2]
[333065643,1721811040601,-150.0,0.00011627,2]
[333065644,1721811040611,-150.0,0.00011627,2]
[333065645,1721811040620,-150.0,0.00011628,2]
[333065646,1721811040629,-150.0,0.00011632,2]
[333065647,1721811040639,-150.0,0.00011633,2]
[333065648,1721811040649,-150.0,0.00011655,2]
[333065649,1721811040658,-150.0,0.00011658,2]
[333065650,1721811040668,-150.0,0.00011664,2]
[333065651,1721811040678,-150.0,0.00011665,2]
[333065652,1721811040687,-150.0,0.00011674,2]
[333065653,1721811040697,-150.0,0.00011675,2]
[333065654,1721811040707,-150.0,0.00011693,2]
[333065655,1721811040716,-150.0,0.00011698,2]
[333065656,1721811040726,-150.0,0.00011705,2]
[333065657,1721811040735,-150.0,0.00011706,2]
[333065658,1721811040745,-150.0,0.00011707,2]
[333065659,1721811040754,-150.0,0.00011708,2]
[333065660,1721811040764,-150.0,0.00011723,2]
[333065661,1721811040773,-150.0,0.00011725,2]
[333065662,1721811040782,-150.0,0.00011728,2]
[333065663,1721811040791,-150.0,0.00011735,2]
[333065664,1721811040801,-135.79918074,0.00011743,2]
[333065665,1721811040813,-14.20081926,0.00011743,2]
[333065666,1721811040823,-150.0,0.00011753,2]
[333065667,1721811040832,-150.0,0.00011757,2]
[333065668,1721811040843,-32.63918074,0.00011759,2]
[333065669,1721811040855,-117.36081926,0.00011759,2]
[333065670,1721811040865,-150.0,0.0001176,2]
[333065671,1721811040874,-150.0,0.0001177,2]
[333065672,1721811040883,-150.0,0.00011788,2]
[333065673,1721811040894,-150.0,0.00011789,2]
[333065674,1721811040903,-150.0,0.00011795,2]
[333065675,1721811040912,-150.0,0.00011799,2]
[333065676,1721811040921,-1078.7402,0.000118,2]
[333065677,1721811040931,-7500.0,0.000118,2]
[333065678,1721811040940,-167.05516025,0.000118,2]
[333065679,1721811040949,-300.0,0.000118,2]
[333065680,1721811040959,-646.13790204,0.000118,2]
[333065681,1721811040968,-988.88456871,0.000118,2]
[333065682,1721811040977,-500.0,0.00011805,2]
[333065683,1721811040986,-200.0,0.00011805,2]
[333065684,1721811040995,-150.0,0.00011808,2]
[333065685,1721811041005,-150.0,0.00011819,2]
[333065686,1721811041018,-150.0,0.00011819,2]
[333065687,1721811041028,-150.0,0.00011827,2]
[333065688,1721811041037,-150.0,0.00011828,2]
[333065689,1721811041047,-150.0,0.00011845,2]
[333065690,1721811041056,-155.0,0.0001185,2]
[333065691,1721811041066,-150.0,0.00011866,2]
[333065692,1721811041076,-150.0,0.00011868,2]
[333065693,1721811041086,-150.0,0.00011874,2]
[333065694,1721811041096,-150.0,0.00011876,2]
[333065695,1721811041107,-150.0,0.00011877,2]
[333065696,1721811041116,-150.0,0.00011889,2]
[333065697,1721811041125,-191.06852557,0.0001189,2]
[333065698,1721811041134,-191.06852557,0.0001189,2]
[333065699,1721811041144,-187.32597481,0.00011892,2]
[333065700,1721811041153,-154.33032649,0.00011897,2]
[333065701,1721811041161,-200.7638447,0.00011899,2]
[333065702,1721811041174,-500.0,0.00011899,2]
[333065703,1721811041183,-500.0,0.00011899,2]
[333065704,1721811041193,-500.0,0.00011899,2]
[333065705,1721811041202,-500.0,0.00011899,2]
[333065706,1721811041211,-500.0,0.00011899,2]
[333065707,1721811041220,-500.0,0.00011899,2]
[333065708,1721811041230,-500.0,0.00011899,2]
[333065709,1721811041240,-625.0,0.00011899,2]
[333065710,1721811041251,-362.88398037,0.00011899,2]
[333065711,1721811041260,-492.92739363,0.00011899,2]
[333065712,1721811041269,-56819.49666842,0.000119,2]
[333065713,1721811041294,-18918.55938786,0.000119,2]
[333065714,1721811041310,-52299.29495221,0.000119,2]
[333065715,1721811041321,-867.42050077,0.000119,2]
[333065716,1721811041332,-714.13926867,0.000119,2]
[333065735,1721811043291,-387.62311967,0.00011757,2]
[333065737,1721811043300,-85027.27305322,0.000119,2]
[333065739,1721811043311,-2153.74105572,0.000119,2]
[333065762,1721811046215,-528.08014406,0.000119,2]
[333065763,1721811046228,-879.9737992,0.000119,2]
[333065764,1721811046330,-3350.55096394,0.000119,2]
[333065765,1721811046344,-515.0477606,0.000119,2]
[333065766,1721811046357,-831.234578,0.000119,2]
[333065767,1721811046449,-557.8322401,0.000119,2]
[333065768,1721811046508,-8786.32937079,0.000119,2]
[333065769,1721811046899,-94478.77084821,0.000119,2]
[333065770,1721811046913,-432.00902886,0.000119,2]
[333065771,1721811046930,-8141.37207907,0.000119,2]
[333065772,1721811100855,152.5,9.391e-05,2]
[333065773,1721811153446,152.58052197,9.404e-05,2]
[333065774,1721811153675,152.58052197,9.474e-05,2]
[333065775,1721811153913,152.58052197,9.946e-05,2]
[333065795,1721811266867,519.0,0.0001,2]
[333065801,1721811318636,412.52788687,0.0001,2]
[333065802,1721811334707,181.55611135,0.0001,2]
[333065803,1721811338269,300.31921246,0.0001,2]
[333065804,1721811349023,200.0,0.0001,2]
[333065805,1721811349721,181.55611135,0.0001,2]
[333065806,1721811411639,260.36874037,0.0001,2]
[333065807,1721811447275,300.31921246,0.0001,2]
[333065808,1721811451250,152.58052197,9.394e-05,2]
[333065809,1721811451735,166.57535372,9.503e-05,2]
[333065810,1721811451764,152.58052197,9.609e-05,2]
[333065811,1721811452436,152.58052197,9.781e-05,2]
[333065812,1721811462331,300.31921246,0.0001,2]
[333065813,1721811473502,1308.5566842,0.0001,2]
[333065814,1721811485807,181.55611135,0.0001,2]
[333065833,1721811576282,300.29437354,0.0001,2]
[333065834,1721811585793,181.55611135,0.0001,2]
[333065835,1721811627174,200.0,0.0001,2]
[333065836,1721811689730,181.55611135,0.0001,2]
[333065837,1721811755569,152.58052197,9.456e-05,2]
[333065841,1721811795757,181.55611135,0.0001,2]
[333065842,1721811826020,181.55611135,0.0001,2]
[333065843,1721811840214,157.41,8.649e-05,2]
[333065844,1721811990962,150.0,0.00015485,120]
[333065907,1721812052050,152.58052198,9.425e-05,2]
[333065917,1721812205986,-150.0,0.000149,31]
[333065924,1721812233143,-920.27437117,0.00010425,2]
[333065925,1721812233175,-79.72562883,0.00010425,2]
[333065926,1721812233184,-250.0,0.00010426,2]
[333065927,1721812233193,-271.98112083,0.00010483,2]
[333065928,1721812233204,-820.6114711,0.00010483,2]
[333065929,1721812233213,-54.3885289,0.00010563,2]
[333065930,1721812233232,-209.93660089,0.00010563,2]
[333065931,1721812233241,-269.42694641,0.00010585,2]
[333065932,1721812233290,-1137.40305359,0.00010585,2]
[333065933,1721812233300,-370.438834,0.00010646,2]
[333065934,1721812233310,-150.0,0.00010701,2]
[333065935,1721812233320,-300.0,0.00010985,2]
[333065936,1721812233330,-300.0,0.00010985,2]
[333065937,1721812233340,-445.0,0.00010986,2]
[333065938,1721812233350,-621.0,0.00010986,2]
[333065939,1721812233359,-450.0,0.00010986,2]
[333065940,1721812233370,-1817.695,0.00010986,2]
[333065941,1721812233379,-150.0,0.00010986,2]
[333065942,1721812233389,-152.58052198,0.00011005,2]
[333065943,1721812233399,-1.43542599,0.00011043,2]
[333065944,1721812233420,-151.14509599,0.00011043,2]
[333065945,1721812233429,-325.59138723,0.00011086,2]
[333065946,1721812238690,-361.2818747,0.00011086,2]
[333065947,1721812238716,-513.37324296,0.00011086,2]
[333065957,1721812240365,-53.75349511,0.00011086,2]
[333065958,1721812240376,-198.48149967,0.00011086,2]
[333065959,1721812240387,-163.51850033,0.00011086,2]
[333065960,1721812240396,-503.51010835,0.00011086,2]
[333065961,1721812240644,-1325.48989165,0.00011086,2]
[333065962,1721812240654,-1664.0,0.00011086,2]
[333065963,1721812240663,-810.0,0.00011086,2]
[333065964,1721812240674,-150.0,0.00011098,2]
[333065965,1721812240683,-264.18925685,0.00011105,2]
[333065966,1721812240692,-15466.55053223,0.00011105,2]
[333065967,1721812240702,-155.0,0.00011105,2]
[333065968,1721812240712,-178.11232886,0.00011105,2]
[333065969,1721812240722,-183.084529,0.00011174,2]
[333065970,1721812240732,-25296.54866866,0.00011186,2]
[333065971,1721812240741,-28093.4005835,0.00011186,2]
[333065972,1721812240750,-24769.61874168,0.00011186,2]
[333065973,1721812240760,-9260.42425602,0.00011186,2]
[333065974,1721812240769,-10531.51879389,0.00011186,2]
[333065975,1721812240779,-5000.0,0.00011186,2]
[333065976,1721812240788,-3400.67809285,0.00011321,2]
[333065977,1721812240798,-3117.36908564,0.00011321,2]
[333065978,1721812240808,-154.90969967,0.00011324,2]
[333065979,1721812240817,-5398.00008521,0.00011324,2]
[333065981,1721812240826,-157.41,0.00011337,2]
[333065983,1721812240835,-150.0,0.00011494,2]
[333065984,1721812240844,-357.0,0.000115,2]
[333065986,1721812240853,-1000.0,0.000115,2]
[333065988,1721812240863,-225.0,0.000115,2]
[333065990,1721812240873,-387.62311967,0.00011513,2]
[333065992,1721812240883,-150.0,0.00011628,2]
[333065994,1721812240892,-378.6853528,0.00011661,2]
[333065996,1721812240901,-152.58052198,0.00011664,2]
[333065998,1721812240910,-1000.0,0.00011728,2]
[333065999,1721812240920,-183.084529,0.00011733,2]
[333066001,1721812240929,-7500.0,0.00011799,2]
[333066003,1721812240938,-10000.0,0.000118,2]
[333066005,1721812240947,-300.0,0.000118,2]
[333066007,1721812240956,-850.60358648,0.000118,2]
[333066009,1721812240965,-181.4307852,0.000118,2]
[333066011,1721812240975,-6540.32466328,0.000118,2]
[333066013,1721812240984,-500.0,0.00011805,2]
[333066015,1721812240993,-200.0,0.00011805,2]
[333066017,1721812241003,-2535.76445,0.0001182,2]
[333066019,1721812241012,-12802.61877215,0.0001185,2]
[333066020,1721812241021,-248.0,0.0001185,2]
[333066022,1721812241030,-152.58052198,0.00011854,2]
[333066024,1721812241039,-505.72484728,0.0001187,2]
[333066026,1721812241049,-152.58052198,0.00011877,2]
[333066028,1721812241058,-191.06852557,0.0001189,2]
[333066030,1721812241068,-167.76686059,0.0001189,2]
[333066032,1721812241077,-2838.11736138,0.00011896,2]
[333066034,1721812241087,-1036.13,0.00011898,2]
[333066036,1721812241096,-500.0,0.00011898,2]
[333066038,1721812241105,-500.0,0.00011898,2]
[333066040,1721812241114,-500.0,0.00011898,2]
[333066042,1721812241123,-500.0,0.00011898,2]
[333066044,1721812241135,-500.0,0.00011898,2]
[333066046,1721812241144,-440.84649604,0.00011898,2]
[333066047,1721812241157,-500.0,0.00011898,2]
[333066049,1721812241166,-643.15,0.00011898,2]
[333066051,1721812241176,-2527.98840599,0.00011898,2]
[333066053,1721812241185,-500.0,0.00011898,2]
[333066055,1721812241195,-500.0,0.00011898,2]
[333066057,1721812241204,-500.0,0.00011898,2]
[333066059,1721812241214,-508.12174435,0.00011899,2]
[333066061,1721812241223,-512.30516256,0.00011899,2]
[333066063,1721812241232,-506.93619579,0.00011899,2]
[333066065,1721812241241,-509.90752678,0.00011899,2]
[333066067,1721812241250,-642.85743984,0.00011899,2]
[333066068,1721812241259,-503.99231288,0.00011899,2]
[333066070,1721812241269,-505.44326589,0.00011899,2]
[333066072,1721812241279,-510.46426422,0.00011899,2]
[333066074,1721812241288,-510.30877098,0.00011899,2]
[333066076,1721812241297,-510.44573319,0.00011899,2]
[333066077,1721812241307,-500.0,0.00011899,2]
[333066078,1721812241316,-283.02404512,0.00011899,2]
[333066079,1721812241325,-516.37976153,0.00011899,2]
[333066080,1721812241335,-514.03213986,0.00011899,2]
[333066081,1721812241344,-508.55371028,0.00011899,2]
[333066082,1721812241353,-509.31226449,0.00011899,2]
[333066083,1721812241363,-507.74715736,0.00011899,2]
[333066084,1721812241372,-518.91418821,0.00011899,2]
[333066085,1721812241382,-505.56032863,0.00011899,2]
[333066086,1721812241391,-500.0,0.00011899,2]
[333066087,1721812241401,-506.35878047,0.00011899,2]
[333066088,1721812241410,-500.0,0.00011899,2]
[333066089,1721812241419,-344.98,0.00011899,2]
[333066090,1721812241428,-500.0,0.00011899,2]
[333066091,1721812241437,-280.64123427,0.00011899,2]
[333066092,1721812241447,-500.0,0.00011899,2]
[333066093,1721812241456,-504.92899832,0.00011899,2]
[333066094,1721812241465,-505.0006115,0.00011899,2]
[333066095,1721812241475,-500.0,0.00011899,2]
[333066096,1721812241484,-505.93462439,0.00011899,2]
[333066097,1721812241493,-508.80189016,0.00011899,2]
[333066098,1721812241503,-510.63039489,0.00011899,2]
[333066099,1721812241512,-371.01963997,0.00011899,2]
[333066100,1721812241521,-508.7374997,0.00011899,2]
[333066101,1721812241530,-517.82018471,0.00011899,2]
[333066102,1721812241539,-509.01133639,0.00011899,2]
[333066103,1721812241548,-512.73911036,0.00011899,2]
[333066104,1721812241558,-509.34226528,0.00011899,2]
[333066105,1721812241567,-504.12252835,0.00011899,2]
[333066106,1721812241576,-505.30798777,0.00011899,2]
[333066107,1721812241585,-500.0,0.00011899,2]
[333066108,1721812241595,-500.0,0.00011899,2]
[333066109,1721812241604,-344.03897945,0.00011899,2]
[333066110,1721812241613,-505.19467056,0.00011899,2]
[333066111,1721812241622,-506.32797806,0.00011899,2]
[333066112,1721812241637,-506.58400206,0.00011899,2]
[333066113,1721812241646,-523.84747783,0.00011899,2]
[333066114,1721812241657,-512.65396772,0.00011899,2]
[333066115,1721812241666,-515.64535822,0.00011899,2]
[333066116,1721812241676,-512.81761002,0.00011899,2]
[333066117,1721812241685,-584.64678059,0.00011899,2]
[333066118,1721812241694,-503.74369192,0.00011899,2]
[333066119,1721812241704,-504.9040233,0.00011899,2]
[333066120,1721812241713,-509.1805902,0.00011899,2]
[333066121,1721812241722,-511.01135469,0.00011899,2]
[333066122,1721812241731,-519.57110336,0.00011899,2]
[333066123,1721812241740,-505.64393764,0.00011899,2]
[333066124,1721812241749,-504.65321685,0.00011899,2]
[333066125,1721812241759,-506.66718771,0.00011899,2]
[333066126,1721812241768,-505.55196652,0.00011899,2]
[333066127,1721812241777,-508.01741098,0.00011899,2]
[333066128,1721812241787,-512.74430903,0.00011899,2]
[333066129,1721812241796,-510.711478,0.00011899,2]
[333066130,1721812241805,-519.42325571,0.00011899,2]
[333066131,1721812241814,-511.71094005,0.00011899,2]
[333066132,1721812241823,-544.00226499,0.00011899,2]
[333066133,1721812241832,-573.87559399,0.00011899,2]
[333066134,1721812241841,-521.07736609,0.00011899,2]
[333066135,1721812241851,-500.0,0.00011899,2]
[333066136,1721812241860,-512.38783198,0.00011899,2]
[333066137,1721812241869,-241.02237339,0.00011899,2]
[333066138,1721812241880,-536.72489711,0.00011899,2]
[333066139,1721812241889,-530.14884519,0.00011899,2]
[333066140,1721812241898,-509.15391504,0.00011899,2]
[333066141,1721812241908,-429.2435724,0.00011899,2]
[333066142,1721812241917,-536.2922928,0.00011899,2]
[333066143,1721812241926,-503.81765894,0.00011899,2]
[333066144,1721812241936,-508.51853885,0.00011899,2]
[333066145,1721812241945,-587.87,0.00011899,2]
[333066146,1721812241955,-500.0,0.00011899,2]
[333066147,1721812241964,-500.0,0.00011899,2]
[333066148,1721812241975,-162.22,0.00011899,2]
[333066149,1721812241984,-500.0,0.00011899,2]
[333066150,1721812241994,-167.58934471,0.00011899,2]
[333066151,1721812242003,-500.0,0.00011899,2]
[333066152,1721812242013,-500.0,0.00011899,2]
[333066153,1721812242022,-155.4597062,0.00011899,2]
[333066154,1721812242031,-551.28005926,0.00011899,2]
[333066155,1721812242040,-500.0,0.00011899,2]
[333066156,1721812242049,-500.0,0.00011899,2]
[333066157,1721812242059,-182.64,0.00011899,2]
[333066158,1721812242068,-518.49913796,0.00011899,2]
[333066159,1721812242077,-507.46192157,0.00011899,2]
[333066160,1721812242086,-644.24152902,0.00011899,2]
[333066161,1721812242095,-508.40546057,0.00011899,2]
[333066162,1721812242105,-500.0,0.00011899,2]
[333066163,1721812242114,-540.84938337,0.00011899,2]
[333066164,1721812242123,-507.81810045,0.00011899,2]
[333066165,1721812242133,-500.0,0.00011899,2]
[333066166,1721812242359,-508.93292866,0.00011899,2]
[333066167,1721812242370,-503.3175681,0.00011899,2]
[333066168,1721812242380,-505.8805806,0.00011899,2]
[333066169,1721812242389,-506.97511285,0.00011899,2]
[333066170,1721812242399,-510.31064233,0.00011899,2]
[333066171,1721812242408,-500.0,0.00011899,2]
[333066172,1721812242417,-150.0,0.00011899,2]
[333066173,1721812242427,-150.0,0.00011899,2]
[333066174,1721812242436,-186.25381511,0.00011899,2]
[333066175,1721812242446,-500.0,0.00011899,2]
[333066176,1721812242456,-500.0,0.00011899,2]
[333066177,1721812242466,-311.9537965,0.00011899,2]
[333066178,1721812242475,-190.20469783,0.00011899,2]
[333066179,1721812242484,-509.35999042,0.00011899,2]
[333066180,1721812242494,-545.51,0.00011899,2]
[333066181,1721812242503,-500.0,0.00011899,2]
[333066182,1721812242512,-645.82985514,0.00011899,2]
[333066183,1721812242521,-507.86513517,0.00011899,2]
[333066184,1721812242530,-535.35,0.00011899,2]
[333066185,1721812242539,-506.45199929,0.00011899,2]
[333066186,1721812242548,-500.0,0.00011899,2]
[333066187,1721812242558,-195.4890769,0.00011899,2]
[333066188,1721812242566,-511.14932231,0.00011899,2]
[333066189,1721812242576,-507.90872439,0.00011899,2]
[333066190,1721812242585,-519.06606168,0.00011899,2]
[333066191,1721812242594,-515.08093811,0.00011899,2]
[333066192,1721812242603,-504.06169088,0.00011899,2]
[333066193,1721812242612,-500.0,0.00011899,2]